Cogmind - Beta 11 X8 @@@ ROGUE MODE // 2021.11.16 @ 02:05:47 Player: Runia Result: Heading to fleet! Performance ------------- Evolutions (9) 4500 Regions Visited (24) 4800 Robots Destroyed (240) 1200 Value Destroyed (8881) 8881 Prototype IDs (88) 1760 Alien Tech Used (5) 1000 Bonus (1785) 1785 TOTAL SCORE: 23926 Bonus ------- High Alert Combat Kills 496 Follower Combat Kills 2244 Entered DSFs 500 Network Hubs Disabled 200 Aligned with FarCom 300 Met Zhirov 300 Built Enhanced Grunts 300 A7 Reached Mainframe 300 Met R17 at Cetus 500 Found Hidden Lab 3000 Used Core Reset Matrix 3000 Met R17 at Research 2000 Win 3000 Friendly Fire -14355 Cogmind --------- Core Integrity 1520/1600 Matter 277/300 Energy 833/850 System Corruption 12% Temperature Cool (98) Movement Walking (115) Location To Fleet Rendezvous Parts ------- > --- POWER (3) -------- Quantum Reactor Quantum Reactor Quantum Reactor > --- PROPULSION (6) --- Biometal Leg Enhanced Biometal Leg Centrium Leg Centrium Leg Centrium Leg Centrium Leg > --- UTILITY (13) ----- Large Storage Unit Enhanced Optical Array Improved Targeting Computer Improved Melee Analysis Suite Advanced Target Analyzer Advanced Armor Integrity Analyzer Nanoactuators Experimental Actuator Array Advanced Transmission Jammer Centrium Medium Armor Plating Medium Regenerative Plating AEGIS Remote Shield Experimental Hacking Suite > --- WEAPON (4) ------- Enhanced Nova Cannon Potential Cannon Force Lance > --- INVENTORY (15) --- Light Quantum Reactor Improved Heavy Treads Combat Linear Gravjet Experimental Energy Well (600) Improved Actuator Array Improved Shock Absorption System Gamma Bomb Array Point Singularity Launcher Force Lance Peak State ------------ > --- POWER ------------ Quantum Reactor Quantum Reactor Quantum Reactor > --- PROPULSION ------- Biometal Leg Enhanced Biometal Leg Centrium Leg Centrium Leg Centrium Leg Centrium Leg > --- UTILITY ---------- Large Storage Unit Enhanced Optical Array Improved Targeting Computer Improved Melee Analysis Suite Advanced Target Analyzer Advanced Armor Integrity Analyzer Nanoactuators Experimental Actuator Array Advanced Transmission Jammer Centrium Medium Armor Plating Medium Regenerative Plating AEGIS Remote Shield Experimental Hacking Suite > --- WEAPON ----------- Enhanced Nova Cannon Potential Cannon Force Lance > --- INVENTORY -------- Light Quantum Reactor Improved Heavy Treads Combat Linear Gravjet Experimental Energy Well Improved Actuator Array Improved Shock Absorption System Gamma Bomb Array Point Singularity Launcher Force Lance [Rating: 207] Favorites ----------- Power Light Angular Momentum Engine Engine Light Angular Momentum Engine Power Core Micro Fission Core Reactor Quantum Reactor Propulsion Combat Airjet Treads Light Treads Leg Centrium Leg Wheel Armored Wheel Hover Unit Combat Airjet Flight Unit Field Propulsion Array Utility Large Storage Unit Device Advanced Terrain Scanner Storage Large Storage Unit Processor Enhanced Optical Array Hackware Experimental Hacking Suite Protection Medium Regenerative Plating Weapon Force Lance Energy Gun Improved EM Shotgun Energy Cannon Enhanced Nova Cannon Ballistic Gun Railgun Launcher Grenade Launcher Special Weapon Field Lobotomy Kit Slashing Weapon Phasing Sabre Piercing Weapon Force Lance Special Melee Weapon Advanced Datajack Build | -11 -10 -10 -10 -9 -8 -7 -7 -6 -6 -6 -6 -6 -5 -5 -5 -5 -4 -4 -4 -4 -3 -2 -1 -1 ------- Run | Scr Mat Min Exi Min Mat Fac DSF Fac Ext Cet Arc Hub Fac Upp Upp Zhi Pro Fac Arm Lab Res Res Acc Com Slots Evolved 18 | . . . . . 4 2 . 2 . . . . 2 . . . . 2 . . 2 2 2 . Power 2 | . . . . . . . . . . . . . 1 . . . . . . . . 1 . . Propulsion 4 | . . . . . 2 . . 1 . . . . . . . . . 1 . . . . . . Utility 11 | . . . . . 2 1 . 1 . . . . 1 . . . . 1 . . 2 1 2 . Weapon 1 | . . . . . . 1 . . . . . . . . . . . . . . . . . . Parts Attached 345 | . 12 2 . . 47 4 7 12 9 15 8 5 9 6 6 8 13 46 28 32 23 10 12 31 Power 35 | . 2 . . . 4 . . . . 2 . . 2 1 . . 2 5 3 2 5 3 . 4 Engine 6 | . 2 . . . 1 . . . . 1 . . 1 1 . . . . . . . . . . Core 6 | . . . . . 3 . . . . . . . . . . . . 2 . 1 . . . . Reactor 23 | . . . . . . . . . . 1 . . 1 . . . 2 3 3 1 5 3 . 4 Propulsion 68 | . 4 . . . 17 . . 4 . . . . 3 . . 3 3 14 7 7 1 1 1 3 Treads 15 | . 4 . . . 8 . . . . . . . . . . . . . 1 1 1 . . . Leg 24 | . . . . . 1 . . . . . . . 1 . . . . 9 5 4 . 1 1 2 Wheel 5 | . . . . . 4 . . . . . . . . . . . . 1 . . . . . . Hover 23 | . . . . . 4 . . 4 . . . . 2 . . 3 3 3 1 2 . . . 1 Flight 1 | . . . . . . . . . . . . . . . . . . 1 . . . . . . Utility 132 | . 2 . . . 10 3 3 5 5 5 4 . 4 3 1 4 4 10 15 10 14 6 9 15 Device 65 | . 1 . . . 2 1 2 1 2 3 2 . 2 2 . 1 1 5 13 5 8 3 5 6 Storage 12 | . 1 . . . 3 . . 1 . . . . . . . . 1 1 . 2 1 . . 2 Processor 13 | . . . . . 2 1 . 1 . . . . . . . 1 . 1 . . 2 2 2 1 Hackware 7 | . . . . . . 1 . 2 1 . . . 1 . . . . 1 . . . . 1 . Protection 35 | . . . . . 3 . 1 . 2 2 2 . 1 1 1 2 2 2 2 3 3 1 1 6 Artifact . | . . . . . . . . . . . . . . . . . . . . . . . . . Weapon 110 | . 4 2 . . 16 1 4 3 4 8 4 5 . 2 5 1 4 17 3 13 3 . 2 9 Energy Gun 11 | . 3 1 . . 5 . . . . 1 . . . . . . . . . 1 . . . . Energy Cannon 31 | . . . . . . . . . 2 3 1 2 . 1 . . 1 5 3 3 3 . 1 6 Ballistic Gun 5 | . . . . . 4 . . . . . . . . . . . 1 . . . . . . . Ballistic Cannon . | . . . . . . . . . . . . . . . . . . . . . . . . . Launcher 19 | . 1 1 . . 5 . . . . 3 . . . . 2 . . 2 . 2 . . 1 2 Special Weapon 5 | . . . . . . . 1 . . . . . . . . 1 . 1 . 2 . . . . Impact Weapon . | . . . . . . . . . . . . . . . . . . . . . . . . . Slashing Weapon 12 | . . . . . 2 1 3 . . . . . . . . . 1 5 . . . . . . Piercing Weapon 26 | . . . . . . . . 3 2 1 2 3 . 1 3 . 1 4 . 5 . . . 1 Special Melee Weapon 1 | . . . . . . . . . . . 1 . . . . . . . . . . . . . Unidentified Prototypes 28 | . 1 . . . 2 . . . . 3 . . 1 . . 4 3 2 1 8 . . 3 . Corrupted Parts 1 | . . . . . . . . . . 1 . . . . . . . . . . . . . . System Corruption 2 | . . . . . . . . . . 2 . . . . . . . . . . . . . . Parts Lost 30 | . 1 1 . . 8 . . . . . . . . . 1 . 3 10 1 . 2 1 . 2 Power 9 | . 1 . . . 1 . . . . . . . . . . . 2 4 . . . 1 . . Propulsion 7 | . . . . . 2 . . . . . . . . . . . 1 4 . . . . . . Utility 8 | . . . . . 3 . . . . . . . . . 1 . . . . . 2 . . 2 Weapon 6 | . . 1 . . 2 . . . . . . . . . . . . 2 1 . . . . . Highest Loss Streak 3 | . 1 1 . . 2 . . . . . . . . . 1 . 2 3 1 . 2 1 . 2 Average Slot Usage (%) 94 | . 99 100 100 100 91 90 94 94 100 100 100 100 95 99 93 93 92 92 93 59 89 90 94 96 Engine 3 | . 13 14 14 14 2 7 7 6 6 5 . . 4 4 5 5 . . . . . . . . Core 1 | . . . . . 6 . . . . . . . . . . . . 3 5 2 1 . . . Reactor 3 | . . . . . . . . . . . 6 6 2 5 5 5 5 4 4 2 7 11 11 11 Treads 6 | . 27 28 28 28 15 . . . . . . . . . . . . . 3 1 4 2 . . Leg 7 | . . . . . . . . . . . . . . . . . . 19 21 7 18 17 21 23 Wheel 1 | . . . . . 16 . . . . . . . . . . . . . 1 . . . . . Hover 12 | . . . . . 2 30 30 30 33 33 33 33 29 29 29 29 28 8 . 3 . . . . Device 9 | . 13 14 14 14 6 15 16 10 8 6 6 6 5 10 7 5 5 7 11 1 12 12 10 13 Storage 7 | . 14 14 14 14 13 7 7 6 6 6 6 6 5 5 5 5 5 5 5 2 4 4 3 3 Processor 10 | . . . . . 11 7 7 11 13 13 13 13 11 11 11 11 11 12 15 15 13 15 16 17 Hackware 2 | . . . . . . 5 1 . 1 . . . 5 5 5 5 5 6 5 5 4 4 7 4 Protection 6 | . . . . . 2 . 2 6 8 13 13 13 9 5 6 10 10 7 3 7 8 8 10 7 Energy Gun 3 | . 19 23 14 14 4 . . . . 1 . . . . . . . . . . . . . . Energy Cannon 1 | . . . . . . . . . 1 4 2 1 . 3 . . . 2 4 1 4 4 3 2 Ballistic Gun 1 | . 7 . . . 4 . . . . . . . . . . . 4 . . . . . . . Launcher 1 | . . 4 14 14 . . . . . . . . . . . . . . . . . . . 1 Slashing Weapon 1 | . . . . . 4 14 18 9 . . . . . . . . 1 4 . . . . . . Piercing Weapon 7 | . . . . . . . . 10 18 13 13 18 17 12 12 11 8 5 10 6 9 8 7 6 Naked Turns . | . . . . . . . . . . . . . . . . . . . . . . . . . Heaviest Build 161 | 11 30 30 30 30 57 29 36 44 47 60 61 60 61 65 63 65 62 73 79 101 111 138 148 161 Greatest Support 180 | 20 40 40 40 40 60 36 36 60 60 60 60 60 60 60 60 60 57 150 125 120 120 150 180 180 Greatest Overweight (x) 20 | . . . . . 4 . . . . . 20 . 1 1 1 1 1 2 . 2 . 1 . 1 Average Overweight (x) . | . . . . . 1 . . . . . 10 . . . . . . . . . . . . . Largest Inventory Capacity 20 | . 15 15 15 15 20 10 10 15 15 15 15 15 15 15 15 15 15 15 15 15 15 15 15 15 Average Capacity 14 | . 10 15 15 15 19 10 10 10 15 15 15 15 15 15 15 15 15 15 15 10 15 15 15 15 Most Carried 20 | . 11 9 10 15 20 10 10 13 15 15 15 15 15 15 15 15 15 15 15 15 15 14 15 14 Average Carried 12 | . 5 8 8 11 17 9 9 9 14 14 14 15 14 14 13 14 14 14 14 9 13 12 13 10 Final Capacity 15 | 8 15 15 15 15 10 10 10 15 15 15 15 15 15 15 15 15 15 15 15 15 15 15 15 15 Final Carried 15 | 6 9 8 10 15 10 10 10 13 15 15 15 15 15 14 14 15 15 15 15 15 14 13 12 10 Class Distribution -------------------- 28% | Mutant 22% | Scavenger-Mutant 8% | Scavenger-Assassin 8% | Commander-Mutant 6% | Generator-Mutant 5% | Scavenger-Scout 5% | Machinist-Scout 3% | Hacker-Mutant Dominant Class ---------------- Mutant | -10/Materials Mutant | -10/Mines Mutant | -10/Exiles Mutant | -9/Mines Mutant | -8/Materials Scavenger-Scout | -7/Factory Scout | -7/DSF Machinist-Scout | -6/Factory Machinist-Scout | -6/Extension Commander-Mutant | -6/Cetus Commander-Mutant | -6/Archives Commander-Scout | -6/Hub_04(d) Scavenger-Scout | -5/Factory Scavenger-Assassin | -5/Upper Caves Scavenger-Mutant | -5/Upper Caves Scavenger-Mutant | -5/Zhirov Scavenger-Mutant | -4/Proximity Caves Scavenger-Mutant | -4/Factory Scavenger-Assassin | -4/Armory Mutant | -4/Lab Scavenger-Assassin | -3/Research Generator-Mutant | -2/Research Hacker-Assassin | -1/Access Generator-Mutant | -1/Command Resources | -11 -10 -10 -10 -9 -8 -7 -7 -6 -6 -6 -6 -6 -5 -5 -5 -5 -4 -4 -4 -4 -3 -2 -1 -1 ----------- Run | Scr Mat Min Exi Min Mat Fac DSF Fac Ext Cet Arc Hub Fac Upp Upp Zhi Pro Fac Arm Lab Res Res Acc Com Matter Collected 4359 | 200 328 214 . 166 743 15 11 222 90 142 39 111 50 59 114 145 140 426 387 77 288 55 . 337 Remotely . | . . . . . . . . . . . . . . . . . . . . . . . . . Salvage Created 11742 | . 694 405 . 79 1746 15 86 599 295 200 77 422 216 . 147 384 188 2158 482 77 442 877 390 1763 Parts 632 | . 51 25 . 8 103 . 4 24 15 9 3 22 10 . 10 4 9 100 30 3 18 64 32 88 Haulers Intercepted 13 | . 1 . . . 4 . . 1 . . . . 1 . . . . 5 . . 1 . . . Recyclers Shooed 5 | . 2 . . . 2 . . . . . . . . . . . . . . . . . . 1 Parts Field Recycled . | . . . . . . . . . . . . . . . . . . . . . . . . . Retrieved Matter . | . . . . . . . . . . . . . . . . . . . . . . . . . Parts Self-Destructed 33 | . . . . . . . . . . . . . . . 5 1 27 . . . . . . . Prevented 14 | . . . . . . . . . . . . . . . . . 14 . . . . . . . Kills | -11 -10 -10 -10 -9 -8 -7 -7 -6 -6 -6 -6 -6 -5 -5 -5 -5 -4 -4 -4 -4 -3 -2 -1 -1 ------- Run | Scr Mat Min Exi Min Mat Fac DSF Fac Ext Cet Arc Hub Fac Upp Upp Zhi Pro Fac Arm Lab Res Res Acc Com Combat Hostiles Destroyed 152 | . 13 9 . 8 31 . 1 1 2 1 . . 1 . 10 . . 30 7 . 4 11 4 19 Melee 78 | . . . . . 9 . 1 1 2 . . . 1 . . . . 24 7 . 4 11 4 14 Guns 27 | . 13 3 . . 11 . . . . . . . . . . . . . . . . . . . Cannons 1 | . . . . . . . . . . . . . . . . . . 1 . . . . . . AOE 41 | . . 6 . 8 11 . . . . . . . . . 10 . . 5 . . . . . 1 Classes Destroyed 17 | . 6 2 . 1 3 . 1 1 . . . . . . 1 . . . 1 . 1 . . . Worker 23 | . . . . . 5 1 . . . . . 4 . . . . . 5 . . 1 4 1 2 Builder 14 | . . 1 . . 8 . . . 1 . . 4 . . . . . . . . . . . . Tunneler 2 | . . 1 . . . . . . . . . . 1 . . . . . . . . . . . Hauler 13 | . 1 . . . 4 . . 1 . . . . 1 . . . . 5 . . 1 . . . Recycler 11 | . 1 . . . 3 . . 3 1 . . 1 . . . . . 1 . . . . . 1 Operator 9 | . 2 . . . 2 . . 1 . . 2 . . . . . . . 1 . . . . 1 Watcher 10 | . 3 . . . 1 . . 1 . . . 1 1 . . . . . . . . 1 2 . Swarmer 42 | . 3 5 . 3 11 . . . . . . . . . 10 . . 10 . . . . . . Grunt 47 | . 10 4 . 1 15 . . . . . . . . . . . . 12 . . 2 1 2 . Duelist 3 | . . . . . . . . . . . . . . . . . . . 3 . . . . . Sentry 14 | . . . . . 4 . . . 2 . . . . . . . . 3 1 . . 1 . 3 Specialist 1 | . . . . . . . 1 . . . . . . . . . . . . . . . . . Hunter 12 | . . . . . 1 . . . . . . . . . . . . 1 . . 2 . . 8 Programmer 29 | . . . . . . . . 1 . . . . 1 . . . . 5 3 . . 9 2 8 Cetus Guard 1 | . . . . . . . . . . 1 . . . . . . . . . . . . . . Enhanced Grunt 1 | . . . . . . . . . . . . 1 . . . . . . . . . . . . Samaritan 2 | . . . . . . . . . . . . . . . 2 . . . . . . . . . Assembled 5 | . . . . 5 . . . . . . . . . . . . . . . . . . . . Thug 2 | . . . . . . . . . . 1 . 1 . . . . . . . . . . . . Revision 1 | . . . . . . . . . . . . . . . . . . . . . 1 . . . Best Kill Streak 14 | . 4 4 . 3 14 1 1 2 2 1 1 9 1 . 5 . . 7 3 . 2 7 4 6 Combat Bots Only 10 | . 3 3 . 3 10 . 1 1 2 1 . . 1 . 5 . . 3 3 . 2 5 2 5 Max Kills in Single Turn 9 | . 1 3 . 3 4 1 1 1 1 1 1 9 1 . 3 . 1 3 1 1 1 1 2 2 Gunslinging . | . . . . . . . . . . . . . . . . . . . . . . . . . Exploded 3 | . . 2 . 3 3 . . . . . . . . . 3 . . 2 . . . . . 1 Melee 1 | . . . . . 1 . 1 1 1 . . . 1 . . . . 1 1 . 1 1 1 1 Uniques/NPCs Destroyed 5 | . . 1 . . . . . . . 1 . . . . . . 2 . . 1 . . . . YI-UF0 (-10/Mines) A7 (-6/Cetus) Svarog (-4/Proximity Caves) Perun (-4/Proximity Caves) *Don't CRM with A7 Core (-4/Lab) Combat | -11 -10 -10 -10 -9 -8 -7 -7 -6 -6 -6 -6 -6 -5 -5 -5 -5 -4 -4 -4 -4 -3 -2 -1 -1 -------- Run | Scr Mat Min Exi Min Mat Fac DSF Fac Ext Cet Arc Hub Fac Upp Upp Zhi Pro Fac Arm Lab Res Res Acc Com Damage Taken 11961 | . 551 159 . 75 1637 . 100 30 125 39 40 252 366 . 180 . 278 3385 634 78 1585 872 220 1355 Core 1408 | . 75 . . . 207 . 9 . 37 12 . 89 46 . . . 21 591 41 27 119 54 13 67 Absorbed by Shields 2558 | . . . . . . . 49 . 48 11 . . . . . . . . . . 122 816 213 1299 Core Remaining (%) 81 | 100 . . . 70 62 . 98 . . . . 83 . . . . 93 . . 40 90 88 . 95 Volleys Fired 276 | . 54 16 . 11 82 . 1 . 20 8 6 6 . 7 5 2 2 12 4 2 3 9 3 23 Largest 2 | . 2 2 . 1 2 . 1 . 1 1 1 1 . 1 1 1 1 1 1 1 1 1 1 1 Hottest 240 | . 90 90 . 30 90 . . . 65 240 90 90 . 90 46 . 88 90 120 40 200 120 200 200 Shots Fired 402 | . 106 27 . 11 142 . 1 . 20 8 6 6 . 7 5 2 2 12 4 2 3 9 3 26 Gun 261 | . 105 23 . . 132 . . . . 1 . . . . . . . . . . . . . . Cannon 87 | . . . . . . . . . 20 5 6 6 . 7 . . 2 6 4 . 3 9 2 17 Launcher 48 | . 1 4 . 11 10 . . . . 2 . . . . 5 . . 5 . . . . 1 9 Special 6 | . . . . . . . 1 . . . . . . . . 2 . 1 . 2 . . . . Kinetic 115 | . 42 . . . 73 . . . . . . . . . . . . . . . . . . . Thermal 169 | . 41 . . . 42 . . . 20 6 6 6 . 7 . . . 6 4 . 3 9 2 17 Explosive 37 | . 1 4 . 11 10 . . . . . . . . . 5 . . 5 . . . . 1 . Electromagnetic 75 | . 22 23 . . 17 . . . . 2 . . . . . . 2 . . . . . . 9 Robot Hit Streak 16 | . 11 8 . 5 16 . 2 . . 5 2 . . . . 2 4 3 . 5 . . 1 3 Robot Miss Streak 7 | . 3 3 . 4 5 . . . 1 2 3 1 . . . . . 1 . . 3 . . 7 Penetration Max . | . . . . . . . . . . . . . . . . . . . . . . . . . Secondary Targets . | . . . . . . . . . . . . . . . . . . . . . . . . . Shots Hit Robots 575 | . 73 22 . 3 130 1 5 10 12 11 7 4 9 . 5 8 5 111 19 11 20 37 15 57 Core Hits 404 | . 38 20 . 16 77 . 1 8 8 6 1 17 5 . 13 5 2 74 11 2 16 24 12 48 Critical Kills 2 | . . . . . 1 . . . . . 1 . . . . . . . . . . . . . Critical Parts Destroyed 1 | . . . . . 1 . . . . . . . . . . . . . . . . . . . Critical Strikes 40 | . 6 . . . 8 . . 1 1 . 1 . . . . . . 6 1 . 4 1 2 9 Burn 10 | . 6 . . . 4 . . . . . . . . . . . . . . . . . . . Meltdown 1 | . . . . . . . . . . . 1 . . . . . . . . . . . . . Destroy 2 | . . . . . 2 . . . . . . . . . . . . . . . . . . . Sever 3 | . . . . . 2 . . . . . . . . . . . . 1 . . . . . . Puncture 24 | . . . . . . . . 1 1 . . . . . . . . 5 1 . 4 1 2 9 Melee Attacks 681 | . . . . . 43 6 6 41 25 6 5 8 47 4 5 7 3 173 50 24 39 63 29 97 Impact . | . . . . . . . . . . . . . . . . . . . . . . . . . Slashing 112 | . . . . . 43 6 6 7 . . . . . . . . 3 47 . . . . . . Piercing 566 | . . . . . . . . 34 25 6 2 8 47 4 5 7 . 126 50 24 39 63 29 97 Sneak Attacks 88 | . . . . . 13 1 1 6 2 6 4 1 4 . 5 . 3 15 5 9 2 8 1 2 Combat Hostiles 10 | . . . . . 2 . 1 . . . . . 1 . . . . 3 . . . 3 . . Follow-up Attacks 78 | . . . . . . . . 3 5 2 . . 4 . 1 1 . 24 4 3 5 11 4 11 Damage Inflicted 33203 | . 902 784 . 462 5671 179 329 793 555 864 227 1705 546 . 1615 641 710 6822 1050 1664 1397 1970 994 3323 Guns 2732 | . 902 320 . . 1510 . . . . . . . . . . . . . . . . . . . Cannons 537 | . . . . . . . . . 28 134 137 . . . . . 63 93 . . . . 41 41 Explosions 7514 | . . 439 . 462 1127 . . . . 282 . 1496 . . 1156 . . 1074 . . 404 . 164 910 Melee 22376 | . . . . . 3034 179 329 793 527 448 90 209 546 . 459 641 647 5655 1050 1664 993 1970 789 2353 Ramming 44 | . . 25 . . . . . . . . . . . . . . . . . . . . . 19 Kinetic 1054 | . 271 . . . 783 . . . . . . . . . . . . . . . . . . . Thermal 2426 | . 324 160 . . 652 . . . 28 134 137 . . . . . . 93 . . 404 . 129 365 Explosive 4029 | . . 279 . 462 982 . . . . . . . . . 1156 . . 1074 . . . . 76 . Electromagnetic 3274 | . 307 320 . . 220 . . . . 282 . 1496 . . . . 63 . . . . . . 586 Impact . | . . . . . . . . . . . . . . . . . . . . . . . . . Slashing 5585 | . . . . . 3034 179 329 . . . . . . . . . 647 1396 . . . . . . Piercing 16791 | . . . . . . . . 793 527 448 90 209 546 . 459 641 . 4259 1050 1664 993 1970 789 2353 Highest Corruption 12 | . 3 3 3 3 9 . . . . 2 . 2 7 3 . . 1 2 6 6 . 7 2 12 Average Corruption 3 | . 3 3 3 3 9 . . . . 1 . 2 6 2 . . 1 2 4 4 . 3 1 6 Corruption Purged 9 | . . . . . . . . . . 2 . . 4 3 . . . . . . . . . . Effects 151 | . 11 13 5 12 11 . . . . . . 1 14 1 . . . 12 24 13 . 5 2 27 Message Errors 46 | . 3 4 2 4 4 . . . . . . . 6 . . . . 5 4 6 . 2 . 6 Matter Fused 29 | . 7 3 2 3 2 . . . . . . . 2 . . . . . 5 2 . 1 . 2 Heat Flow Errors 20 | . . 3 . 1 2 . . . . . . . 1 . . . . 1 6 1 . . . 5 Energy Discharges 25 | . . 2 . 2 . . . . . . . 1 3 1 . . . 5 2 3 . . 2 4 Parts Rejected 1 | . . . . . . . . . . . . . . . . . . . . . . 1 . . Data Loss (minor) 23 | . 1 . 1 2 3 . . . . . . . 2 . . . . 1 6 1 . . . 6 Data Loss (major) 2 | . . . . . . . . . . . . . . . . . . . 1 . . 1 . . Misfires 3 | . . . . . . . . . . . . . . . . . . . . . . . . 3 Alerts 1 | . . . . . . . . . . . . . . . . . . . . . . . . 1 Weapon Failures 1 | . . 1 . . . . . . . . . . . . . . . . . . . . . . Overload Shots 1 | . . . . . . . . . . 1 . . . . . . . . . . . . . . Overflow Damage 3127 | . . 57 . 10 1228 139 44 . 128 20 . 66 25 . 343 114 . 183 70 310 . 141 140 109 Projectiles 5 | . . . . . . . . . . . . . . . . . . 5 . . . . . . Explosions 326 | . . 57 . 10 44 . . . . . . 66 . . 101 . . . . . . . 48 . Melee 2796 | . . . . . 1184 139 44 . 128 20 . . 25 . 242 114 . 178 70 310 . 141 92 109 Knockbacks . | . . . . . . . . . . . . . . . . . . . . . . . . . Impact . | . . . . . . . . . . . . . . . . . . . . . . . . . Kinetic . | . . . . . . . . . . . . . . . . . . . . . . . . . Secondary . | . . . . . . . . . . . . . . . . . . . . . . . . . Self-Inflicted Damage 1005 | . . 46 . 50 195 . . . . . . 99 . . 92 . . 22 . . 100 . 208 193 Shots 24 | . . 1 . 2 6 . . . . . . 1 . . 2 . . 2 . . 1 . 2 7 Rammed 7 | . . 7 . . . . . . . . . . . . . . . . . . . . . . Targets Rammed 8 | . . 7 . . . . . . . . . . . . . . . . . . . . . 1 Kicked 1 | . . . . . . . . . . . . . . . . . . . . . . . . 1 Crushed . | . . . . . . . . . . . . . . . . . . . . . . . . . Highest Temperature 458 | . 162 236 . 140 243 . . . 4 184 2 127 141 120 18 4 68 232 261 77 407 368 147 458 Average Temperature 84 | . 53 73 . 75 71 . . . 3 73 2 59 17 42 4 2 39 74 79 55 174 146 61 120 Received Heat Transfer 1694 | . 207 66 . . 369 . 8 . 42 . 9 72 18 . . . 21 531 45 . 214 60 12 20 Effects 6 | . . . . . 1 . . . . . . . . . . . . . . . 1 3 . 1 Shutdowns 2 | . . . . . . . . . . . . . . . . . . . . . 1 1 . . Energy Bleed 1 | . . . . . 1 . . . . . . . . . . . . . . . . . . . Interference 1 | . . . . . . . . . . . . . . . . . . . . . . . . 1 Short Circuit 1 | . . . . . . . . . . . . . . . . . . . . . . 1 . . Damage (minor) 1 | . . . . . . . . . . . . . . . . . . . . . . 1 . . Siege Activations . | . . . . . . . . . . . . . . . . . . . . . . . . . Robots Corrupted 7 | . . 1 . . . . . . . . . 2 . . . . . . . . . . . 4 Combat Hostiles 4 | . . . . . . . . . . . . . . . . . . . . . . . . 4 Parts Fried 17 | . . 2 . . . . . 1 . . . 10 . . . . 1 . . . . 1 . 2 Impact Corruptions . | . . . . . . . . . . . . . . . . . . . . . . . . . Robots Melted 2 | . . . . . . . . . . 1 1 . . . . . . . . . . . . . Combat Hostiles 1 | . . . . . . . . . . 1 . . . . . . . . . . . . . . Parts Melted 17 | . 6 . . . 4 . . . . 2 4 . . . . . . 1 . . . . . . Heat Transferred 4456 | . 1406 150 . . 1569 . . . 37 200 200 . . . . . . 150 . . 360 . 117 267 Parts Sabotaged . | . . . . . . . . . . . . . . . . . . . . . . . . . Parts Stolen . | . . . . . . . . . . . . . . . . . . . . . . . . . Parts Stripped . | . . . . . . . . . . . . . . . . . . . . . . . . . Power Chain Reactions 7 | . . 3 . . 2 . . . . . . . . . . . . . . . . . . 2 Missiles Intercepted . | . . . . . . . . . . . . . . . . . . . . . . . . . Alert | -11 -10 -10 -10 -9 -8 -7 -7 -6 -6 -6 -6 -6 -5 -5 -5 -5 -4 -4 -4 -4 -3 -2 -1 -1 ------- Run | Scr Mat Min Exi Min Mat Fac DSF Fac Ext Cet Arc Hub Fac Upp Upp Zhi Pro Fac Arm Lab Res Res Acc Com Peak Influence 786 | . 270 115 . 81 620 274 247 178 155 528 404 698 432 . . . . 540 394 . 128 248 434 786 Initial 312 | . . 25 . . . 266 191 129 44 16 211 . 312 . . . . 39 264 . . 42 148 172 Average 203 | . 94 65 . 42 263 269 212 119 51 222 215 276 339 . . . . 243 244 . 35 57 230 500 Maximum Alert Level 3 | . 1 . . . 2 1 1 . . 2 2 2 2 . . . . 2 1 . . 1 2 3 Low Security (%) 54 | . 87 100 . 100 43 . 6 100 100 75 34 65 . . . . . 33 17 . 100 95 55 4 Level 1 32 | . 12 . . . 37 100 93 . . 5 35 . 95 . . . . 57 82 . . 4 40 17 Level 2 12 | . . . . . 18 . . . . 19 29 34 4 . . . . 9 . . . . 3 68 Level 3 . | . . . . . . . . . . . . . . . . . . . . . . . . 9 Level 4 . | . . . . . . . . . . . . . . . . . . . . . . . . . Level 5 . | . . . . . . . . . . . . . . . . . . . . . . . . . High Security . | . . . . . . . . . . . . . . . . . . . . . . . . . Max Security . | . . . . . . . . . . . . . . . . . . . . . . . . . Squads Dispatched 48 | . 4 . . . 5 . . 1 . . . 1 6 . . . . 10 3 . 4 6 2 6 Investigation 11 | . 2 . . . 3 . . . . . . . 2 . . . . 1 1 . 1 . . 1 Extermination 11 | . . . . . . . . 1 . . . . . . . . . 2 2 . . 2 1 3 Reinforcement 21 | . 2 . . . 2 . . . . . . 1 4 . . . . 5 . . 3 1 1 2 Assault 2 | . . . . . . . . . . . . . . . . . . 2 . . . . . . Garrison 3 | . . . . . . . . . . . . . . . . . . . . . . 3 . . Intercept . | . . . . . . . . . . . . . . . . . . . . . . . . . Construction Impeded 4 | . . . . . 2 . . . . . . 1 . . . . . . . . . . 1 . Haulers Reinforced 2 | . . . . . . . . . . . . . . . . . . 1 . . . 1 . . Active Scanning Responses . | . . . . . . . . . . . . . . . . . . . . . . . . . Cargo Convoy Interrupts . | . . . . . . . . . . . . . . . . . . . . . . . . . Stealth | -11 -10 -10 -10 -9 -8 -7 -7 -6 -6 -6 -6 -6 -5 -5 -5 -5 -4 -4 -4 -4 -3 -2 -1 -1 --------- Run | Scr Mat Min Exi Min Mat Fac DSF Fac Ext Cet Arc Hub Fac Upp Upp Zhi Pro Fac Arm Lab Res Res Acc Com Distress Signals 27 | . 2 . . . 6 . 1 . 2 2 . 1 . . . . . 4 . . 7 1 1 . Communications Jammed 19 | . . . . . . . . . . . . . . . . . . 18 . . . . . 1 Distress Signals 19 | . . . . . . . . . . . . . . . . . . 18 . . . . . 1 Times Spotted 308 | . 26 10 . 9 54 . 3 4 11 15 4 5 13 . 10 . 14 52 11 1 9 21 9 27 Peak Tracking Total 7 | . 6 3 . 3 7 . 1 2 3 5 2 2 3 . 5 . 2 7 5 1 4 5 3 7 Tactical Retreats 20 | . 1 . . . 3 . . . . 2 . . 1 . . . . 8 . . 1 1 1 2 Traps | -11 -10 -10 -10 -9 -8 -7 -7 -6 -6 -6 -6 -6 -5 -5 -5 -5 -4 -4 -4 -4 -3 -2 -1 -1 ------- Run | Scr Mat Min Exi Min Mat Fac DSF Fac Ext Cet Arc Hub Fac Upp Upp Zhi Pro Fac Arm Lab Res Res Acc Com Traps Triggered 9 | . 1 . . . . . 2 . 2 . . . 2 . . . . 1 1 . . . . . Indirectly . | . . . . . . . . . . . . . . . . . . . . . . . . . Trap Hack Attempts . | . . . . . . . . . . . . . . . . . . . . . . . . . Triggered . | . . . . . . . . . . . . . . . . . . . . . . . . . Disarmed . | . . . . . . . . . . . . . . . . . . . . . . . . . Reprogrammed . | . . . . . . . . . . . . . . . . . . . . . . . . . Reused . | . . . . . . . . . . . . . . . . . . . . . . . . . Traps Extracted . | . . . . . . . . . . . . . . . . . . . . . . . . . Installed . | . . . . . . . . . . . . . . . . . . . . . . . . . Triggered 1 | . . . . . . . . . . . . . . . . . . 1 . . . . . . Exploded 1 | . . . 1 . . . . . . . . . . . . . . . . . . . . . Machines | -11 -10 -10 -10 -9 -8 -7 -7 -6 -6 -6 -6 -6 -5 -5 -5 -5 -4 -4 -4 -4 -3 -2 -1 -1 ---------- Run | Scr Mat Min Exi Min Mat Fac DSF Fac Ext Cet Arc Hub Fac Upp Upp Zhi Pro Fac Arm Lab Res Res Acc Com Machines Disabled 52 | . 1 1 . . 2 . 1 1 1 1 3 24 1 . . . . 4 6 1 . 1 1 3 Max in Single Turn 20 | . 1 1 . . 1 . 1 1 1 1 1 20 1 . . . . 1 1 1 . 1 1 1 Garrison Access 5 | . . . . . 1 . . . . . . 1 1 . . . . 1 . . 1 . . . Network Hub 1 | . . . . . . . . . . . . 1 . . . . . . . . . . . . Machines Sabotaged . | . . . . . . . . . . . . . . . . . . . . . . . . . Garrisons Compromised 1 | . . . . . . . . . . . . . . . . . . 1 . . . . . . Overloaded Fab Kills . | . . . . . . . . . . . . . . . . . . . . . . . . . Hacking | -11 -10 -10 -10 -9 -8 -7 -7 -6 -6 -6 -6 -6 -5 -5 -5 -5 -4 -4 -4 -4 -3 -2 -1 -1 --------- Run | Scr Mat Min Exi Min Mat Fac DSF Fac Ext Cet Arc Hub Fac Upp Upp Zhi Pro Fac Arm Lab Res Res Acc Com Machines Accessed 94 | . 7 . 2 . 12 5 . 8 10 . . 5 7 . . 4 . 13 6 . 5 2 2 6 Terminals 56 | . 4 . . . 7 3 . 6 10 . . 4 3 . . . . 6 2 . 2 2 2 5 Fabricators 9 | . . . . . . . . 1 . . . . 2 . . . . 3 2 . 1 . . . Repair Stations 5 | . 1 . . . 1 . . . . . . . . . . . . 1 1 . . . . 1 Recycling Units 5 | . 2 . . . 1 . . 1 . . . . . . . . . . 1 . . . . . Scanalyzers 7 | . . . . . 2 1 . . . . . . 1 . . . . 2 . . 1 . . . Garrison Access 6 | . . . . . 1 1 . . . . . 1 1 . . . . 1 . . 1 . . . Total Hacks 365 | . 24 . 2 . 47 13 . 18 26 . . 12 32 . . 17 . 65 30 . 19 11 7 42 Successful 192 | . 14 . 2 . 30 8 . 12 11 . . 2 13 . . 17 . 34 16 . 11 6 2 14 Failed 172 | . 10 . . . 16 5 . 6 15 . . 10 19 . . . . 31 14 . 8 5 5 28 Catastrophic 31 | . . . . . 3 1 . 1 . . . 2 5 . . . . 7 2 . . . 1 9 Database Lockouts 1 | . . . . . 1 . . . . . . . . . . . . . . . . . . . Manual 95 | . 9 . 1 . 11 2 . 2 10 1 . 6 9 . . . . 26 8 . 5 1 . 4 Terminals 220 | . 18 . . . 24 5 . 13 26 . . 8 15 . . . . 41 12 . 8 11 7 32 Fabricators 35 | . . . . . . . . 3 . . . . 8 . . . . 12 8 . 4 . . . Repair Stations 31 | . 2 . . . 9 . . . . . . . . . . . . 5 5 . . . . 10 Recycling Units 12 | . 4 . . . 1 . . 2 . . . . . . . . . . 5 . . . . . Scanalyzers 35 | . . . . . 11 6 . . . . . . 7 . . . . 6 . . 5 . . . Garrison Access 13 | . . . . . 2 2 . . . . . 4 2 . . . . 1 . . 2 . . . Terminal Hacks 98 | . 10 . 2 . 12 2 . 6 8 . . 1 3 . . 17 . 15 2 . 3 6 2 9 Record 6 | . . . 1 . . . . . . . . . . . . 5 . . . . . . . . Part Schematic 9 | . . . . . 1 . . . . . . . . . . 4 . 1 . . . 1 . 2 Robot Analysis 6 | . . . . . 2 . . . . . . . . . . 4 . . . . . . . . Prototype ID Bank 17 | . 3 . . . 4 1 . 2 . . . . 1 . . 4 . . . . 1 . . 1 Open Door 7 | . . . . . . . . 1 5 . . . . . . . . . . . . . 1 . Open DSF 2 | . . . . . . 1 . 1 . . . . . . . . . . . . . . . . Level Access Points 3 | . . . . . . . . . . . . . 1 . . . . . . . . 1 . 1 Branch Access Points 4 | . . . . . . . . 1 . . . . . . . . . 1 1 . . . 1 . Emergency Access Points 1 | . . . . . . . . 1 . . . . . . . . . . . . . . . . Terminal Index 4 | . . . . . 1 . . . . . . . . . . . . 1 . . 1 . . 1 Alert Level 4 | . . . . . . . . . . . . . . . . . . 2 . . . . . 2 Unreport Threat 8 | . 1 . . . 1 . . . . . . . . . . . . 4 . . 1 1 . . Locate Traps 8 | . . . . . 2 . . . 1 . . . 1 . . . . 2 . . . 1 . 1 Investigation Status 1 | . 1 . . . . . . . . . . . . . . . . . . . . . . . Recall Investigation 2 | . 2 . . . . . . . . . . . . . . . . . . . . . . . Recall Extermination 1 | . . . . . . . . . . . . . . . . . . . . . . 1 . . Recall Reinforcements 1 | . . . . . . . . . . . . . . . . . . . . . . 1 . . Hauler Manifests 2 | . . . . . 1 . . . . . . . . . . . . 1 . . . . . . Registered Components 1 | . 1 . . . . . . . . . . . . . . . . . . . . . . . Registered Prototypes 1 | . . . . . . . . . . . . . . . . . . . . . . . . 1 Zone Layout 9 | . 2 . . . . . . . 2 . . 1 . . . . . 3 1 . . . . . EX-Prototype ID Bank 1 | . . . 1 . . . . . . . . . . . . . . . . . . . . . Fabricator Hacks 12 | . . . . . . . . 3 . . . . 2 . . . . 3 3 . 1 . . . Network Status 5 | . . . . . . . . . . . . . 1 . . . . 2 1 . 1 . . . Load Schematic 2 | . . . . . . . . 1 . . . . 1 . . . . . . . . . . . Build 5 | . . . . . . . . 2 . . . . . . . . . 1 2 . . . . . Repair Station Hacks 19 | . 2 . . . 6 . . . . . . . . . . . . 4 4 . . . . 3 Scan Component 10 | . 1 . . . 3 . . . . . . . . . . . . 2 2 . . . . 2 Repair 9 | . 1 . . . 3 . . . . . . . . . . . . 2 2 . . . . 1 Recycling Unit Hacks 4 | . . . . . 1 . . 2 . . . . . . . . . . 1 . . . . . Report Inventory 3 | . . . . . 1 . . 1 . . . . . . . . . . 1 . . . . . Retrieve Components 1 | . . . . . . . . 1 . . . . . . . . . . . . . . . . Scanalyzer 27 | . . . . . 8 6 . . . . . . 5 . . . . 5 . . 3 . . . Insert Component 15 | . . . . . 4 3 . . . . . . 3 . . . . 4 . . 1 . . . Analyze 12 | . . . . . 4 3 . . . . . . 2 . . . . 1 . . 2 . . . Garrison Access Hacks 5 | . . . . . 1 . . . . . . 1 1 . . . . 1 . . 1 . . . Seal Access 5 | . . . . . 1 . . . . . . 1 1 . . . . 1 . . 1 . . . Unauthorized Hacks 27 | . 2 . . . 2 . . 1 3 . . . 2 . . . . 6 6 . 3 . . 2 Terminals 12 | . . . . . 1 . . 1 3 . . . . . . . . 3 1 . 1 . . 2 Assimilate 4 | . . . . . 1 . . 1 . . . . . . . . . 1 1 . . . . . Botnet 5 | . . . . . . . . . 2 . . . . . . . . . . . 1 . . 2 Disrupt 1 | . . . . . . . . . . . . . . . . . . 1 . . . . . . Operators 2 | . . . . . . . . . 1 . . . . . . . . 1 . . . . . . Fabricators 8 | . . . . . . . . . . . . . 2 . . . . 3 1 . 2 . . . Report 1 | . . . . . . . . . . . . . . . . . . 1 . . . . . . Prioritize 1 | . . . . . . . . . . . . . . . . . . . 1 . . . . . Fabnet 3 | . . . . . . . . . . . . . 1 . . . . 1 . . 1 . . . Haulers 3 | . . . . . . . . . . . . . 1 . . . . 1 . . 1 . . . Repair Stations . | . . . . . . . . . . . . . . . . . . . . . . . . . Recycling Units 6 | . 2 . . . . . . . . . . . . . . . . . 4 . . . . . Monitor 1 | . . . . . . . . . . . . . . . . . . . 1 . . . . . Reject 1 | . . . . . . . . . . . . . . . . . . . 1 . . . . . Recyclers 1 | . . . . . . . . . . . . . . . . . . . 1 . . . . . Mask 1 | . . . . . . . . . . . . . . . . . . . 1 . . . . . Tunnel 2 | . 2 . . . . . . . . . . . . . . . . . . . . . . . Scanalyzers 1 | . . . . . 1 . . . . . . . . . . . . . . . . . . . Extract 1 | . . . . . 1 . . . . . . . . . . . . . . . . . . . Garrison Access . | . . . . . . . . . . . . . . . . . . . . . . . . . Data Cores Recovered 1 | . . . . . 1 . . . . . . . . . . . . . . . . . . . Used 1 | . . . . . 1 . . . . . . . . . . . . . . . . . . . Hacking Detections 72 | . 4 . . . 8 5 . 7 8 . . 4 6 . . . . 11 5 . 5 2 1 6 Full Trace Events 6 | . . . . . 1 . . . . . . . 2 . . . . 1 . . 1 . . 1 Feedback Events . | . . . . . . . . . . . . . . . . . . . . . . . . . Feedback Blocked . | . . . . . . . . . . . . . . . . . . . . . . . . . Robot Schematics Acquired . | . . . . . . . . . . . . . . . . . . . . . . . . . Robots Built 1 | . . . . . . . . . . . . . . . . . . . 1 . . . . . Authchips . | . . . . . . . . . . . . . . . . . . . . . . . . . Time 40 | . . . . . . . . . . . . . . . . . . . 40 . . . . . Total Robot Build Rating 1 | . . . . . . . . . . . . . . . . . . . 1 . . . . . Part Schematics Acquired 20 | . . . . . 5 3 . . . . . . 2 . . 4 . 2 . . 1 1 . 2 Parts Built 6 | . . . . . . . . 4 . . . . . . . . . 1 1 . . . . . Authchips 2 | . . . . . . . . 2 . . . . . . . . . . . . . . . . Time 387 | . . . . . . . . 190 . . . . . . . . . 58 139 . . . . . Total Part Build Rating 36 | . . . . . . . . 20 . . . . . . . . . 7 9 . . . . . Parts Repaired 9 | . 1 . . . 3 . . . . . . . . . . . . 2 2 . . . . 1 Time 436 | . 26 . . . 132 . . . . . . . . . . . . 94 164 . . . . 20 Parts Recycled . | . . . . . . . . . . . . . . . . . . . . . . . . . Recycled Matter . | . . . . . . . . . . . . . . . . . . . . . . . . . Retrieved Matter . | . . . . . . . . . . . . . . . . . . . . . . . . . Retrieved Components 2 | . . . . . . . . 2 . . . . . . . . . . . . . . . . Parts Scanalyzed 9 | . . . . . 3 3 . . . . . . 2 . . . . 1 . . . . . . Part Schematics Acquired 10 | . . . . . 3 3 . . . . . . 2 . . . . 1 . . 1 . . . Parts Damaged . | . . . . . . . . . . . . . . . . . . . . . . . . . Bothacking | -11 -10 -10 -10 -9 -8 -7 -7 -6 -6 -6 -6 -6 -5 -5 -5 -5 -4 -4 -4 -4 -3 -2 -1 -1 ------------ Run | Scr Mat Min Exi Min Mat Fac DSF Fac Ext Cet Arc Hub Fac Upp Upp Zhi Pro Fac Arm Lab Res Res Acc Com Used RIF Installer . | . . . . . . . . . . . . . . . . . . . . . . . . . Robots Hacked 13 | . . . . . . . . . . . 3 . . . . . 1 2 . 1 4 2 . . Non-combat 6 | . . . . . . . . . . . 3 . . . . . . . . . 3 . . . Combat 7 | . . . . . . . . . . . . . . . . . 1 2 . 1 1 2 . . Robot Hacks Applied 4 | . . . . . . . . . . . 3 . . . . . . . . 1 . . . . parse_system 1 | . . . . . . . . . . . . . . . . . . . . 1 . . . . check_alert 3 | . . . . . . . . . . . 3 . . . . . . . . . . . . . Relay Couplers Released 4 | . . . . . . . . . . . . . 4 . . . . . . . . . . . Programmers 4 | . . . . . . . . . . . . . 4 . . . . . . . . . . . Fabnet Peak Effective % 4 | . . . . . . . . . . . . . . . . . 3 3 3 3 4 4 1 1 Autooverrided 9 | . . . . . . . . . . . . . . . . . 1 2 . . 4 2 . . Robots Rewired 8 | . . . . . . 1 . . 7 . . . . . . . . . . . . . . . Allies Hacked . | . . . . . . . . . . . . . . . . . . . . . . . . . Hacks Repelled . | . . . . . . . . . . . . . . . . . . . . . . . . . Allies | -11 -10 -10 -10 -9 -8 -7 -7 -6 -6 -6 -6 -6 -5 -5 -5 -5 -4 -4 -4 -4 -3 -2 -1 -1 -------- Run | Scr Mat Min Exi Min Mat Fac DSF Fac Ext Cet Arc Hub Fac Upp Upp Zhi Pro Fac Arm Lab Res Res Acc Com Total Allies 40 | . . 4 . . . 1 1 1 13 5 . . . . . 2 1 4 1 1 4 2 . . Largest Group 12 | . . 4 4 3 2 1 2 1 9 12 8 6 . . . 2 3 1 1 1 2 1 . . Highest-Rated Group 818 | . . 71 71 40 24 40 122 26 407 818 500 438 . . . 244 299 116 10 197 97 84 . . Highest-Rated Ally 197 | . . 31 31 16 16 40 82 26 159 159 95 95 . . . 131 131 116 10 197 56 84 . . Total Orders 9 | . . . . . . . 1 2 2 . . . . . . . 1 . 3 . . . . . STAY 5 | . . . . . . . 1 1 1 . . . . . . . 1 . 1 . . . . . FOLLOW 2 | . . . . . . . . 1 1 . . . . . . . . . . . . . . . COLLECT 2 | . . . . . . . . . . . . . . . . . . . 2 . . . . . Ally Attacks 277 | . . 4 . 4 23 . 1 . 30 92 35 20 . . . . 33 25 . . 2 8 . . Total Damage 9439 | . . . . 37 220 . 54 . 1125 2746 914 783 . . . . 2325 1063 . . 72 100 . . Kills 51 | . . . . 1 3 . 1 . 8 13 4 2 . . . . 15 4 . . . . . . Allies Corrupted 3 | . . . . . . . . . . . . 3 . . . . . . . . . . . . Allies Melted . | . . . . . . . . . . . . . . . . . . . . . . . . . Field Lobotomies 5 | . . . . . . . 1 . . . . . . . . 2 . 1 . 1 . . . . Intel | -11 -10 -10 -10 -9 -8 -7 -7 -6 -6 -6 -6 -6 -5 -5 -5 -5 -4 -4 -4 -4 -3 -2 -1 -1 ------- Run | Scr Mat Min Exi Min Mat Fac DSF Fac Ext Cet Arc Hub Fac Upp Upp Zhi Pro Fac Arm Lab Res Res Acc Com Robot Analysis Total 6 | . . . . . 2 . . . . . . . . . . 4 . . . . . . . . Derelict Logs Recovered 8 | . . 1 . 1 . . . . . . . . . 2 2 . 2 . . . . . . . Drone Launches . | . . . . . . . . . . . . . . . . . . . . . . . . . Drone Recoveries . | . . . . . . . . . . . . . . . . . . . . . . . . . Exploration | -11 -10 -10 -10 -9 -8 -7 -7 -6 -6 -6 -6 -6 -5 -5 -5 -5 -4 -4 -4 -4 -3 -2 -1 -1 ------------- Run | Scr Mat Min Exi Min Mat Fac DSF Fac Ext Cet Arc Hub Fac Upp Upp Zhi Pro Fac Arm Lab Res Res Acc Com Turns Passed 18439 | . 1304 877 428 659 1798 181 148 692 923 395 1230 241 863 430 189 164 1113 1814 1275 687 763 606 435 1224 Spaces Moved 12354 | 1 649 504 266 378 972 264 214 666 788 216 182 280 944 363 258 195 1276 1212 613 382 529 275 232 695 Core 108 | . . . . . . . . . . . 108 . . . . . . . . . . . . . Treads 1821 | . 631 504 266 378 42 . . . . . . . . . . . . . . . . . . . Legs 3160 | 1 18 . . . . . . . . . . . . . . . . 629 613 168 529 275 232 695 Wheels 756 | . . . . . 756 . . . . . . . . . . . . . . . . . . . Hover 6509 | . . . . . 174 264 214 666 788 216 74 280 944 363 258 195 1276 583 . 214 . . . . Flight . | . . . . . . . . . . . . . . . . . . . . . . . . . Fastest Speed 27 | 120 120 160 160 160 45 45 45 45 64 64 64 64 60 60 60 46 42 27 115 60 115 115 116 115 Average Speed 101 | 120 158 160 160 160 108 45 45 58 64 64 599 64 67 107 60 55 48 80 115 101 115 142 116 115 Slowest Speed 1050 | 120 160 160 160 160 160 45 45 64 64 64 1050 64 134 128 128 125 100 216 116 290 115 185 116 184 Overloaded Moves 81 | . . . . . . . . . . . . . . . . . . 81 . . . . . . Propulsion Burnouts . | . . . . . . . . . . . . . . . . . . . . . . . . . Robots Hopped . | . . . . . . . . . . . . . . . . . . . . . . . . . Cave-ins Triggered 1 | . . . . . 1 . . . . . . . . . . . . . . . . . . . Teleports 2 | . . . . . . . . . . . . . . . . . . . 1 . . 1 . . Exploration Rate (%) 52 | 2 92 97 61 77 76 10 90 17 63 73 80 30 33 68 55 61 98 32 34 100 13 9 10 29 Regions Visited 24 Branch Regions 14 Pre-discovered Areas 9 | . 2 1 1 . . . . . . . . . . 1 . 3 1 . . . . . . . Known Exits Taken 10 | . . . . . . 1 . 1 . . . . . . . 1 1 1 1 1 1 1 1 . Unknown Exits Taken 13 | 1 1 1 1 1 1 . . . 1 1 1 1 1 1 1 . . . . . . . . . Scrap Searched 12 | . . 2 . 2 . . . . . . . . . 3 1 . 4 . . . . . . . Spaces Dug 288 | . 7 3 . . 24 3 . 11 19 . . 4 19 10 . . . 24 11 7 6 12 49 79 Terrain Destroyed 783 | . 7 40 . 71 81 3 . 11 19 1 1 152 19 10 77 . . 80 11 7 24 12 49 108 Melee 118 | . . . . . 3 3 . 11 6 . . . 19 3 . . . 23 8 7 6 4 7 18 Projectile 60 | . . . . . . . . . 13 1 1 5 . 7 . . . 3 3 . 3 8 1 15 AOE 605 | . 7 40 . 71 78 . . . . . . 147 . . 77 . . 54 . . 15 . 41 75 Terrain Rammed . | . . . . . . . . . . . . . . . . . . . . . . . . . Walls Destroyed . | . . . . . . . . . . . . . . . . . . . . . . . . . Machines Disabled . | . . . . . . . . . . . . . . . . . . . . . . . . . Actions | -11 -10 -10 -10 -9 -8 -7 -7 -6 -6 -6 -6 -6 -5 -5 -5 -5 -4 -4 -4 -4 -3 -2 -1 -1 --------- Run | Scr Mat Min Exi Min Mat Fac DSF Fac Ext Cet Arc Hub Fac Upp Upp Zhi Pro Fac Arm Lab Res Res Acc Com Total 17013 | . 827 543 269 421 1498 317 254 923 1148 455 310 318 1105 388 279 236 1757 1804 1096 644 632 423 369 997 Wait 3020 | . 89 13 2 28 280 27 2 206 247 198 106 21 106 7 . 15 441 354 391 136 32 79 88 152 Move 12329 | . 648 503 265 377 971 263 213 665 787 215 181 279 943 362 257 194 1275 1211 612 381 528 274 231 694 Hop . | . . . . . . . . . . . . . . . . . . . . . . . . . Pick Up 157 | . 13 1 2 5 30 4 6 8 4 6 2 . 5 2 1 3 8 11 6 27 4 2 5 2 Fast Attach 125 | . 2 . . . 13 2 3 5 . 3 1 . 4 . 2 6 9 22 6 17 11 3 6 10 Attach 83 | . 5 1 . . 15 1 2 2 1 2 1 . 1 3 4 3 . 8 2 7 7 5 5 8 Detach 27 | . . . . . 3 . . . . . . . 1 . 3 1 1 5 1 3 1 1 2 5 Swap 143 | . 5 1 . . 19 1 2 5 8 10 6 5 4 3 . . 4 16 21 11 5 3 1 13 Drop 236 | . 11 1 . . 42 4 7 10 3 9 3 . 9 1 3 7 14 23 14 40 13 2 7 13 Fire 276 | . 54 16 . 11 82 . 1 . 20 8 6 6 . 7 5 2 2 12 4 2 3 9 3 23 Melee 524 | . . . . . 43 4 5 22 17 4 4 7 32 3 4 5 3 142 39 20 28 45 21 76 Ram . | . . . . . . . . . . . . . . . . . . . . . . . . . Kick 1 | . . . . . . . . . . . . . . . . . . . . . . . . 1 Crush 7 | . . 7 . . . . . . . . . . . . . . . . . . . . . . Escape Stasis 21 | . . . . . . . 13 . 8 . . . . . . . . . . . . . . . Rewire 64 | . . . . . . 11 . . 53 . . . . . . . . . . . . . . . Trap . | . . . . . . . . . . . . . . . . . . . . . . . . . Miscellaneous . | . . . . . . . . . . . . . . . . . . . . . . . . . Route ------- -11/Scrapyard -10/Materials (discovered 5 exits: [*Mat x3] / [*Min x2]) -10/Mines (discovered 3 exits: [*Mat x2] / *Exi) -10/Exiles -9/Mines -8/Materials (discovered 3 exits: *Fac x2 / [*Sto]) -7/Factory -7/DSF -6/Factory (discovered 5 exits: *Fac / *Low x2 / *Ext x2) -6/Extension (discovered 2 exits: *Fac / *Cet) -6/Cetus (discovered 2 exits: *Fac / [*Arc]) -6/Archives (discovered 3 exits: *Fac / *Hub x2) -6/Hub_04(d) -5/Factory (discovered 5 exits: Fac x4 / [*Upp]) -5/Upper Caves -5/Upper Caves (discovered 2 exits: *Fac / *Zhi) -5/Zhirov -4/Proximity Caves -4/Factory (discovered 5 exits: *Res x2 / Upp x2 / *Arm) -4/Armory (discovered 2 exits: Res / *Lab) -4/Lab -3/Research (discovered 2 exits: *Res / *Tes) -2/Research (discovered 4 exits: *Acc x3 / *Qua) -1/Access -1/Command (discovered 2 exits: *Sur x2) To Fleet Rendezvous History --------- Turn | Location | Event 1 | -11/Scrapyard | Discovered new exit (range 0) 1 | -11/Scrapyard | Entered Materials 305 | -10/Materials | Build established: Mutant 577 | -10/Materials | Discovered new exit (range 7) 806 | -10/Materials | Discovered new exit (range 16) 1013 | -10/Materials | Discovered new exit (range 15) 1203 | -10/Materials | Discovered new exit (range 8) 1217 | -10/Materials | Repaired Lgt. Treads 1233 | -10/Materials | Discovered new exit (range 15) 1305 | -10/Materials | Entered Mines 1324 | -10/Mines | Learned Materials non-interactive machine intel 1336 | -10/Mines | YI-UF0 nonchalantly dropped a Grenade Launcher on the ground 1364 | -10/Mines | Destroyed YI-UF0 1578 | -10/Mines | Discovered new exit (range 8) 1939 | -10/Mines | Discovered new exit (range 7) 1953 | -10/Mines | Assisted by bots powering up and referring to "LRC-V3" 2124 | -10/Mines | Escorted by a lone wolf Derelict 2144 | -10/Mines | Learned location of Storage (-8) 2174 | -10/Mines | Deemed a non-threat by the Exiles lab entrance 2174 | -10/Mines | Discovered new exit (range 6) 2182 | -10/Mines | Entered Exiles 2182 | -10/Exiles | Accompanied by 4 allies 2219 | -10/Exiles | Met 8R-AWN 2250 | -10/Exiles | Met EX-HEX 2312 | -10/Exiles | Met EX-DEC 2320 | -10/Exiles | Learned location of Zion (-6) 2346 | -10/Exiles | Met EX-BIN 2368 | -10/Exiles | Aligned with FarCom system 2370 | -10/Exiles | Given EX-Vault access code 2410 | -10/Exiles | Opened EX-Vault 2418 | -10/Exiles | Found Field Lobotomy Kit 2451 | -10/Exiles | Warned to stay clear of 0b10 Research branches 2476 | -10/Exiles | Exiles lab attacked by MAIN.C 2594 | -10/Exiles | Discovered new exit (range 11) 2610 | -10/Exiles | Left Exiles lab with Field Lobotomy Kit 2610 | -10/Exiles | Entered Mines 2610 | -9/Mines | Accompanied by 3 allies 2611 | -9/Mines | Assembled infested the area 2616 | -9/Mines | Assisted by a Guerilla fighting off Assembled 2633 | -9/Mines | Met a Derelict bent on vengeance 2952 | -9/Mines | Learned Materials emergency access door positions 2952 | -9/Mines | Discovered new exit (range 9) 2989 | -9/Mines | Found a hidden stash of uninstalled traps 3269 | -9/Mines | Entered Materials 3269 | -8/Materials | Accompanied by 2 allies 3269 | -8/Materials | Evolved 4 slots: Propulsion x2, Utility x2 3271 | -8/Materials | Loaded intel: 38 non-interactive machine locations 3500 | -8/Materials | Discovered new exit (range 4) 3806 | -8/Materials | Repaired Cmb. Airjet 3839 | -8/Materials | Repaired Arm. Wheel 3890 | -8/Materials | Repaired Flexi-carbon Leg 4571 | -8/Materials | Central database locked down 4600 | -8/Materials | Discovered new exit (range 12) 4768 | -8/Materials | Crushed by falling debris 4772 | -8/Materials | Destroyed 10 combat bots 4916 | -8/Materials | Discovered new exit (range 13) 5067 | -8/Materials | Entered Factory 5067 | -7/Factory | Evolved 2 slots: Utility x1, Weapon x1 5240 | -7/Factory | Identified exit to DSF 5248 | -7/Factory | Entered DSF 5248 | -7/DSF | Accompanied by 1 ally 5269 | -7/DSF | Assimilated H-61 Shepherd with FLK Orb 5346 | -7/DSF | Discovered new exit (range 15) 5382 | -7/DSF | Additional patrols routed to DSF 5396 | -7/DSF | Entered Factory 5396 | -6/Factory | Evolved 2 slots: Propulsion x1, Utility x1 5611 | -6/Factory | Fabricated Cmb. Airjet (x2) 5636 | -6/Factory | Build established: Scout 5711 | -6/Factory | Fabricated Cmb. Airjet (x2) 5736 | -6/Factory | Identified exit to Lower Caves 5736 | -6/Factory | Identified exit to Extension 5968 | -6/Factory | Discovered new exit (range 22) 5985 | -6/Factory | P-60 Hacker assimilated allied Administrator 5a 6004 | -6/Factory | Build established: Machinist-Scout 6088 | -6/Factory | Entered Extension 6347 | -6/Extension | Rescued a captive Derelict 6348 | -6/Extension | Rescued a captive Derelict 6547 | -6/Extension | Rescued a captive Derelict 6569 | -6/Extension | Rescued a captive Derelict 6602 | -6/Extension | Rescued a captive Derelict 6720 | -6/Extension | Rescued A7 6982 | -6/Extension | Discovered new exit (range 16) 6994 | -6/Extension | Discovered new exit (range 6) 7011 | -6/Extension | Entered Cetus 7011 | -6/Cetus | Accompanied by 9 allies (A7) 7016 | -6/Cetus | Acquired a Cetus Manufacturing Module code from A7 7027 | -6/Cetus | Spotted Cetus Guard 7027 | -6/Cetus | Spotted Cetus Guard 7027 | -6/Cetus | Spotted Cetus Guard 7027 | -6/Cetus | Spotted Cetus Guard 7042 | -6/Cetus | Allies destroyed Cetus Guard 7045 | -6/Cetus | Allies destroyed Cetus Guard 7045 | -6/Cetus | Allies destroyed Cetus Guard 7049 | -6/Cetus | Destroyed Cetus Guard 7144 | -6/Cetus | Started Cetus Manufacturing Module 7153 | -6/Cetus | Escorted A7 to Cetus Mainframe 7161 | -6/Cetus | Discovered new exit (range 22) 7169 | -6/Cetus | Manufactured an Enhanced Grunt 7194 | -6/Cetus | Manufactured an Enhanced Grunt 7219 | -6/Cetus | Manufactured an Enhanced Grunt 7244 | -6/Cetus | Manufactured an Enhanced Grunt 7269 | -6/Cetus | Manufactured an Enhanced Grunt 7289 | -6/Cetus | Spotted Cetus Guard 7290 | -6/Cetus | Spotted Cetus Guard 7292 | -6/Cetus | Spotted Cetus Guard 7296 | -6/Cetus | Spotted Cetus Guard 7308 | -6/Cetus | Allies destroyed Cetus Guard 7311 | -6/Cetus | Allies destroyed Cetus Guard 7315 | -6/Cetus | Allies destroyed Cetus Guard 7317 | -6/Cetus | Allies destroyed Cetus Guard 7345 | -6/Cetus | Discovered new exit (range 21) 7358 | -6/Cetus | Met Revision 17 7392 | -6/Cetus | Destroyed A7 7394 | -6/Cetus | Extracted ID and sensor layout for unrecognized location from A7's data core 7397 | -6/Cetus | Found Prototype Protection 7397 | -6/Cetus | Identified Med. Regenerative Plating 7406 | -6/Cetus | Entered Archives 7406 | -6/Archives | Accompanied by 8 allies 7467 | -6/Archives | Build established: Commander-Mutant 7550 | -6/Archives | Discovered new exit (range 22) 7928 | -6/Archives | Discovered new exit (range 18) 8605 | -6/Archives | Discovered new exit (range 18) 8636 | -6/Archives | Entered Hub_04(d) 8636 | -6/Hub_04(d) | Accompanied by 6 allies 8695 | -6/Hub_04(d) | Discovered new exit (range 15) 8793 | -6/Hub_04(d) | Network Hub disabled 8806 | -6/Hub_04(d) | Spotted Lightning 8824 | -6/Hub_04(d) | Spotted Lightning 8877 | -6/Hub_04(d) | Entered Factory 8877 | -5/Factory | Evolved 2 slots: Power x1, Utility x1 8893 | -5/Factory | Identified exit to Factory 9096 | -5/Factory | Build established: Scavenger-Scout 9706 | -5/Factory | Discovered new exit (range 22) 9740 | -5/Factory | Entered Upper Caves 10049 | -5/Upper Caves | Encountered a Warlord checkpoint 10109 | -5/Upper Caves | Build established: Scavenger-Assassin 10163 | -5/Upper Caves | Discovered new exit (range 5) 10170 | -5/Upper Caves | Entered another Upper Caves area 10170 | -5/Upper Caves | Discovered exit to Factory (range 19) 10301 | -5/Upper Caves | Learned 4 Factory zone layouts 10321 | -5/Upper Caves | Learned 4 Factory zone layouts 10330 | -5/Upper Caves | Encountered a Warlord checkpoint 10336 | -5/Upper Caves | Discovered new exit (range 10) 10359 | -5/Upper Caves | Entered Zhirov 10359 | -5/Zhirov | Discovered new exit (range 4) 10370 | -5/Zhirov | Met Zhirov 10381 | -5/Zhirov | Learned location of Quarantine (-2) 10381 | -5/Zhirov | Learned location of Testing (-3) 10381 | -5/Zhirov | Learned location of Command (-1) 10387 | -5/Zhirov | Zhirov requested help retrieving the SGEMP Prototype 10397 | -5/Zhirov | Found Alien Artifact 10397 | -5/Zhirov | Identified Integrated Reactor 10397 | -5/Zhirov | Installed Integrated Reactor, increased core energy generation (+10) 10408 | -5/Zhirov | Found Alien Artifact 10488 | -5/Zhirov | Assimilated Perun with FLK Orb 10494 | -5/Zhirov | Assimilated Svarog with FLK Orb 10519 | -5/Zhirov | Build established: Scavenger-Mutant 10522 | -5/Zhirov | Identified exit to Proximity Caves 10523 | -5/Zhirov | Entered Proximity Caves 10523 | -4/Proximity Caves | Accompanied by 2 allies (incl. Perun, Svarog) 10774 | -4/Proximity Caves | Discovered exit to Factory (range 5) 10886 | -4/Proximity Caves | Learned location of Armory (-4) 11595 | -4/Proximity Caves | Destroyed Svarog 11604 | -4/Proximity Caves | Destroyed Perun 11636 | -4/Proximity Caves | Entered Factory 11636 | -4/Factory | Evolved 2 slots: Propulsion x1, Utility x1 11637 | -4/Factory | Identified exit to Armory 11638 | -4/Factory | Identified exit to Research 11918 | -4/Factory | Lost 3 parts (1p1n1w) 11942 | -4/Factory | Identified exit to Upper Caves 12020 | -4/Factory | Found Prototype Hackware 12020 | -4/Factory | Identified Exp. Hacking Suite 12028 | -4/Factory | Identified Transdimensional Reconstructor 12054 | -4/Factory | Discovered exit to Research (range 13) 13080 | -4/Factory | Spotted B-86 Titan 13083 | -4/Factory | Assimilated B-86 Titan with FLK Orb 13148 | -4/Factory | Repaired Exp. Utility Shielding 13203 | -4/Factory | Repaired Centrium Medium Armor Plating 13280 | -4/Factory | Core integrity fell below 50% 13386 | -4/Factory | First assault squad dispatched 13412 | -4/Factory | Fabricated Force Lance (x1) 13450 | -4/Factory | Entered Armory 13535 | -4/Armory | Fabricated Adv. Cloaking Device (x1) 13605 | -4/Armory | Fabricated R-06 Scavenger (x1) 14346 | -4/Armory | Warped through subspace to slip node 14346 | -4/Armory | Discovered new exit (range 1) 14346 | -4/Armory | Identified exit to Lab 14483 | -4/Armory | Repaired Smartbomb Launcher 14592 | -4/Armory | Repaired Enh. Biometal Leg 14613 | -4/Armory | Found Gamma Bomb Array 14631 | -4/Armory | Discovered exit to Research (range 14) 14725 | -4/Armory | Entered Lab 14725 | -4/Lab | Discovered exit to Research (range 9) 14739 | -4/Lab | Hidden lab's door opened automatically 14739 | -4/Lab | Sensor layout match revealed 14740 | -4/Lab | Gained access to the hidden lab's interior 14742 | -4/Lab | Unable to decrypt terminal 15054 | -4/Lab | Build established: Mutant 15092 | -4/Lab | Found Alien Artifact 15092 | -4/Lab | Identified Core Reset Matrix 15092 | -4/Lab | Used Core Reset Matrix 15096 | -4/Lab | Sensed 3 artifacts in vicinity 15105 | -4/Lab | Found Integrated Mediator 15105 | -4/Lab | Installed Integrated Mediator, increased core attachment efficiency. 15115 | -4/Lab | Found Core Expander 15115 | -4/Lab | Installed Core Expander, added new Weapon slot 15125 | -4/Lab | Detected by scanners 15129 | -4/Lab | Discovered exit to Research (range 6) 15130 | -4/Lab | Assimilated A5 with FLK Orb 15255 | -4/Lab | Unable to decrypt terminal 15269 | -4/Lab | Found Prototype Energy Gun 15269 | -4/Lab | Identified Tachyon Dispersion Ray 15273 | -4/Lab | Found Prototype Energy Cannon 15273 | -4/Lab | Identified Potential Cannon 15277 | -4/Lab | Found Prototype Device 15277 | -4/Lab | Identified AEGIS Remote Shield 15289 | -4/Lab | Found Prototype Hackware 15333 | -4/Lab | Found Prototype Special Weapon 15334 | -4/Lab | Identified Gui. Remote Datajack 15366 | -4/Lab | Found Transdimensional Reconstructor 15407 | -4/Lab | Destroyed *Don't CRM with A7 Core 15412 | -4/Lab | Entered Research 15412 | -3/Research | Evolved 2 slots: Utility x2 15582 | -3/Research | Discovered new exit (range 20) 15612 | -3/Research | Revision forces began assault on 0b10 15635 | -3/Research | Met up with Revision 17++ 15650 | -3/Research | Identified exit to Research 15837 | -3/Research | Discovered new exit (range 20) 15882 | -3/Research | Identified exit to Testing 16112 | -3/Research | Research terminal network offline 16175 | -3/Research | Entered another Research area 16175 | -2/Research | Evolved 2 slots: Power x1, Utility x1 16232 | -2/Research | Discovered new exit (range 13) 16272 | -2/Research | Spotted B-90 Cyclops 16277 | -2/Research | Identified exit to Quarantine 16289 | -2/Research | Warped through subspace 16531 | -2/Research | Garrison activated, responded to threat 16572 | -2/Research | Identified exit to Access 16740 | -2/Research | Build established: Generator-Mutant 16781 | -2/Research | Entered Access 16781 | -1/Access | Evolved 2 slots: Utility x2 16781 | -1/Access | Identified Quantum Router 16876 | -1/Access | Identified exit to Command 16885 | -1/Access | Found Prototype Launcher 16889 | -1/Access | Found Prototype Device 17073 | -1/Access | Build established: Hacker-Assassin 17108 | -1/Access | Identified Point Singularity Launcher 17216 | -1/Access | Entered Command 17386 | -1/Command | Spotted B-99 Colossus 17390 | -1/Command | Build established: Hacker-Mutant 17483 | -1/Command | Repaired Force Lance 17670 | -1/Command | Identified Exp. Actuator Array 17927 | -1/Command | Identified exit to Surface 17929 | -1/Command | Build established: Generator-Mutant 18015 | -1/Command | System corruption reached 10% 18429 | -1/Command | Spotted B-99 Colossus 18440 | *** | Heading to fleet! Last Messages --------------- 18231_ Slug penetrates Wall. 18231_ Penetrated by Slug. 18231_ H-88 Terminator destroyed. 18233_ Acquired 55 matter. 18246_ System corrupted: Component data lost. 18262_ System corrupted: Energy discharge (-323). 18281_ System corrupted: Energy discharge (-340). 18301_ Y-72 Warden suffers critical hit (Puncture). 18301_ Force Lance follow-up attack on Y-72 Warden. 18303_ ZDU%HBI&I3SR 5 N=W7GHUTQBUUY YEVGZ0UWCN 18303_ Penetrated by Slug. 18303_ Y-72 Warden destroyed. 18334_ System corrupted: Heat flow error (+132). 18353_ System corrupted: FCS attempts to trigger Potential Cannon. 18370_ System corrupted: Heat flow error (+220). 18393_ System corrupted: FCS attempts to trigger Potential Cannon. 18393_ System corrupted: Potential Cannon misfires. 18412_ System corrupted: Component data lost. 18430_ System corrupted: Matter fused (-8). 18436_ Access Shell breached. Map ----- +----------------------------------------------------+ | ???????? #######"### | | ?????? ??????##"### ############"####### | | ???? ????????# #??????????###?????# | | ???###+##????????# ###??????????????????# | | ???# ########## #????????????????????# | | ???# ! #????????????????????# | | ???# ############### #????????????????????# | | ???# #?????????????# #????????????????????# | | ???## ##########?????#g+++#????????????????????# | | ????# # #??????g????????????????????????# | | ????# # #???????????????????????????????# | | ????# # #????7??gg??7???????????????????? | | ????# # #????????????????????????????????+ | | ????# [# """" #????K??????K????????????????????? | | ????# %+! """" #????????g???????????????????????? | | ????# #* """" #????E??????E????????????????????? | | ????# # """" #????????????????????????????????? | | ????# # #????E??????E????????????????????? | | ????# # #????????????????????????????????? | | ????# # """" #?#BB????????BB??????????????????? | | ????# # """" #?#BB????????BB??????????????????? | | ????# # """" #?# ?????????????????????????????? | | ????# # """" #?# ??""""""???#?????????????????? | | ????# # #?# ?" "?? #?????????????????? | | ????# # #?# ?" "" "? #?????????????????? | | ????# ##+#####+#?# " "@ "? #?????????????????? | | ????# ?# #???# ### " " #?????????????????? | | ???? ?# #???# "## "" """ #?????????????????? | | ???? ?# #???# ### ^ #?????????????????? | | ???? ?# #???# #?# #?????????????????? | | ???? ?# #???# #?# #?????????????????? | | ????# ? #???# #?#####;""######?????????????????? | | ????? ? #???# #????### ###?????????????????????? | | ????? ? #???# #???## #?????????????????????? | | ????? ? #???# #???# #?????????????????????? | | ???????? #???# #???## #?????????????????????? | | ???????? #???# #?### ##?????????????????????? | | ???????? ????# ###"" " #??????????????????????? | | ????# ##### # #??????????????????????? | | ????# + #??????????????????????? | | ????# ######## # #??????????????????????? | | ??????????????#+###" " ##??????????????????????? | | ????????????????? " #???????????????????????? | | ???????????????? # ###???????????????????????? | | ?????????????? ###??????????????????????????? | | ????????????? ?????????????????????????????? | | ???????????? =??????????????????????????????? | | ?????????? ??????????????????????????????? | | ?????????" = ! ???????????????????????????????? | | ????????##########???????????????????????????????? | +----------------------------------------------------+ Best States ------------- Heat Dissipation 64 Energy Generation 75 Energy Capacity 1270 Matter Stores 450 Matter Capacity 450 Sight Range 22 Terrain Scan Range 20 Terrain Scan Density 210 Jamming Range 16 Cloak Strength 4 EM Shielding 4 Armor Coverage 450 Propulsion Shielding 90 Utility Shielding 90 Melee Speed Boost 30 Evasion (%) 59 Targeting Accuracy 6 Melee Accuracy 6 Target Analysis 8 Armor Integrity Analysis 40 Recoil Reduction 3 Offensive Hacking 16 Defensive Hacking 25 Authchip Count 4 Item Schematics ----------------- Centrium Medium Armor Plating | -3/Research | Scanalyzed Centrium Leg | -2/Research | Hacked Adv. Force Booster | -1/Command | Hacked Cmb. Linear Gravjet | -1/Command | Hacked Robot Schematics ------------------ None Fabricated ------------ Cmb. Airjet | x2 | -6/Factory | Authchip Cmb. Airjet | x2 | -6/Factory | Authchip Force Lance | x1 | -4/Factory | Preloaded Adv. Cloaking Device | x1 | -4/Armory | Preloaded R-06 Scavenger | x1 | -4/Armory | Preloaded Alien Tech Used ----------------- Integrated Reactor Transdimensional Reconstructor Core Reset Matrix Integrated Mediator Core Expander Achievements -------------- None Challenges ------------ None Game ------ Seed ThrowingHardlightRail Manual? 0 Play Time 03:46:44 Cumulative 488.7 hours Start 2021.11.15 @ 00:32:52 End 2021.11.16 @ 02:05:47 Sessions 4 Manual Loads 0 Difficulty Rogue Special Mode None Game No. 478 Rogue 478 Adventurer 0 Explorer 0 Win Type 2 Total 12 Types 9/0/2/1/0/0/0/0/0 Lore% 82 Gallery% 93 Achievement% 72 Wizard Run 0 Options --------- ASCII 0 Keyboard 0 Movement Mouse Keybinds 1 Fullscreen 2 Font 24/Smallcaps Map View 76x50 Tactical HUD 1 Map Filters NONE Filters NONE Steam 1 RUN: fcbf56f9-6237-4ded-a6ba-02d7c049a7e4